bitfinex/quotes_SOLUSD_20230702
["timestamp","ask_amount","ask_price","bid_price","bid_amount"]
[1688257411052,7.43397326,18.673,18.658,22.67]
[1688257411247,55.0,18.672,18.658,22.67]
[1688257411839,20.0,18.671,18.649,58.394]
[1688257412045,55.0,18.67,18.646,106.56]
[1688257412342,27.43397326,18.669,18.65,22.68]
[1688257412548,55.0,18.668,18.65,22.68]
[1688257412739,20.0,18.667,18.65,22.68]
[1688257412947,55.0,18.666,18.65,22.68]
[1688257413149,20.0,18.665,18.65,22.68]
[1688257413351,20.0,18.665,18.65,81.071]
[1688257413552,20.0,18.665,18.655,22.674]
[1688257413949,55.0,18.664,18.646,58.402]
[1688257414148,20.0,18.663,18.651,22.678]
[1688257414355,55.0,18.672,18.652,75.0]
[1688257414544,55.0,18.671,18.658,22.671]
[1688257415646,55.0,18.671,18.655,22.673]
[1688257415950,62.43397326,18.671,18.655,22.673]
[1688257416560,7.43397326,18.67,18.64,17.25]
[1688257416742,27.43397326,18.67,18.644,58.409]
[1688257416943,55.0,18.669,18.644,58.409]
[1688257417143,20.0,18.668,18.644,58.409]
[1688257417341,55.0,18.667,18.644,58.409]
[1688257417561,20.0,18.666,18.644,58.409]
[1688257417755,55.0,18.665,18.644,58.409]
[1688257418060,27.43397326,18.664,18.644,58.409]
[1688257418254,55.0,18.663,18.647,22.683]
[1688257419455,55.0,18.663,18.647,22.684]
[1688257419456,20.0,18.662,18.647,22.684]
[1688257419647,27.43397326,18.662,18.647,22.684]
[1688257419848,55.0,18.661,18.635,106.622]
[1688257420158,27.43397326,18.66,18.635,106.622]
[1688257420348,55.0,18.659,18.64,22.692]
[1688257420547,20.0,18.658,18.64,22.692]
[1688257420747,55.0,18.657,18.64,22.692]
[1688257420955,20.0,18.656,18.64,22.692]
[1688257421153,55.0,18.655,18.64,22.692]
[1688257421355,20.0,18.654,18.64,22.692]
[1688257422452,20.0,18.657,18.64,22.692]
[1688257422655,55.0,18.656,18.641,55.0]
[1688257422855,20.0,18.655,18.642,22.689]
[1688257423055,55.0,18.654,18.642,22.689]
[1688257423361,20.0,18.653,18.64,22.692]
[1688257423564,55.0,18.652,18.64,22.692]
[1688257424147,55.0,18.652,18.631,69.28619922]
[1688257424364,55.0,18.652,18.632,20.0]
[1688257425871,55.0,18.652,18.636,22.697]
[1688257426654,62.43397326,18.652,18.636,22.697]
[1688257426963,62.43397326,18.652,18.632,20.0]
[1688257426964,27.43397326,18.651,18.62,17.02]
[1688257427267,27.43397326,18.651,18.63,22.704]
[1688257427451,55.0,18.65,18.63,22.704]
[1688257427646,20.0,18.649,18.63,22.704]
[1688257427861,55.0,18.648,18.63,22.704]
[1688257428068,20.0,18.647,18.63,22.704]
[1688257428365,55.0,18.646,18.63,22.704]
[1688257428565,20.0,18.645,18.63,22.704]
[1688257428774,55.0,18.644,18.63,22.704]
[1688257429067,55.0,18.646,18.63,22.704]
[1688257429269,65.51786837,18.66,18.631,20.0]
[1688257429470,7.51184202,18.654,18.638,22.694]
[1688257429768,20.0,18.653,18.638,22.694]
[1688257430157,27.51184202,18.653,18.638,22.694]
[1688257431072,7.51184202,18.652,18.629,58.454]
[1688257431270,55.0,18.651,18.63,20.0]
[1688257431655,7.51184202,18.65,18.63,20.0]
[1688257431855,55.0,18.649,18.633,22.7]
[1688257432270,7.51184202,18.648,18.633,22.7]
[1688257432466,55.0,18.647,18.633,22.7]
[1688257434669,62.51184202,18.647,18.633,22.7]
[1688257434869,27.51184202,18.646,18.631,22.703]
[1688257435067,27.51184202,18.646,18.607,49.802]
[1688257435068,55.0,18.645,18.627,22.708]
[1688257435278,20.0,18.644,18.627,22.708]
[1688257435475,55.0,18.643,18.627,22.708]
[1688257435777,7.51184202,18.642,18.627,22.708]
[1688257435956,55.0,18.641,18.627,22.708]
[1688257436478,396.8,18.646,18.627,22.708]
[1688257436776,22.7,18.648,18.627,22.708]
[1688257436777,20.0,18.645,18.627,22.708]
[1688257436963,7.51184202,18.646,18.627,22.708]
[1688257437280,20.0,18.645,18.627,22.708]
[1688257437573,27.51184202,18.645,18.627,22.708]
[1688257437771,55.0,18.644,18.627,22.708]
[1688257437976,20.0,18.643,18.627,22.708]
[1688257438179,55.0,18.642,18.627,22.708]
[1688257438359,62.51184202,18.642,18.627,22.708]
[1688257439272,55.0,18.642,18.627,22.708]
[1688257439477,20.0,18.645,18.628,55.0]
[1688257439784,20.0,18.647,18.633,22.701]
[1688257440162,27.51184202,18.647,18.629,22.705]
[1688257440365,27.51184202,18.647,18.623,58.475]
[1688257440366,7.51184202,18.646,18.623,58.475]
[1688257440665,20.0,18.645,18.624,55.0]
[1688257440871,55.0,18.644,18.624,55.0]
[1688257441066,20.0,18.643,18.624,55.0]
[1688257441275,22.7,18.648,18.629,22.705]
[1688257441475,450.41,18.665,18.63,91.94]
[1688257441665,450.41,18.665,18.637,22.695]
[1688257441666,20.0,18.655,18.637,22.695]
[1688257441864,126.54804202,18.655,18.637,22.695]
[1688257442265,126.54804202,18.655,18.63,75.0]
[1688257442478,27.51184202,18.655,18.63,97.704]
[1688257442678,55.0,18.654,18.63,22.704]
[1688257442983,126.54804202,18.653,18.631,20.0]
[1688257443181,55.0,18.652,18.632,22.701]
[1688257443480,27.51184202,18.651,18.63,22.704]
[1688257443667,17.1,18.65,18.618,106.719]
[1688257443866,75.0,18.649,18.619,20.0]
[1688257444070,130.94971039,18.649,18.619,20.0]
[1688257444276,48.43786837,18.648,18.619,20.0]
[1688257444486,75.0,18.647,18.619,20.0]
[1688257444664,82.51184202,18.647,18.619,20.0]
[1688257444871,82.51184202,18.647,18.624,22.711]
[1688257446667,27.51184202,18.647,18.624,22.711]
[1688257447863,55.0,18.646,18.624,22.711]
[1688257448064,20.0,18.645,18.622,22.713]
[1688257448264,55.0,18.644,18.622,22.713]
[1688257448466,20.0,18.643,18.622,22.713]
[1688257448869,7.51184202,18.646,18.622,22.713]
[1688257449087,7.51184202,18.642,18.622,22.713]
[1688257449881,55.0,18.641,18.622,22.713]
[1688257450171,62.51184202,18.641,18.622,22.713]
[1688257450972,7.51184202,18.64,18.622,22.713]
[1688257451286,55.0,18.639,18.622,22.713]
[1688257452596,62.51184202,18.639,18.622,22.713]
[1688257452769,7.51184202,18.638,18.622,22.713]
[1688257453084,55.0,18.637,18.622,22.713]
[1688257453388,27.51184202,18.636,18.622,22.713]
[1688257453688,55.0,18.635,18.622,22.713]
[1688257453872,20.0,18.634,18.622,22.713]
[1688257454071,55.0,18.633,18.622,22.713]
[1688257454574,55.0,18.633,18.61,16.94]
[1688257454769,62.51184202,18.633,18.616,22.721]
[1688257454984,84.01378302,18.633,18.609,58.518]
[1688257455164,7.51184202,18.632,18.612,22.726]
[1688257455477,7.51184202,18.632,18.61,22.728]
[1688257455478,75.0,18.631,18.61,22.728]
[1688257455979,7.51184202,18.63,18.61,22.728]
[1688257456165,75.0,18.629,18.61,22.728]
[1688257456879,91.1074,18.628,18.61,22.728]
[1688257457082,75.0,18.627,18.61,22.728]
[1688257457383,75.0,18.627,18.59,17.09]
[1688257457384,75.0,18.627,18.601,58.543]
[1688257457586,75.0,18.627,18.608,22.731]
[1688257458177,75.0,18.627,18.606,22.733]
[1688257458373,75.0,18.627,18.602,22.738]
[1688257458683,48.43786837,18.626,18.601,4.48901992]
[1688257458883,17.1,18.62,18.601,4.48901992]
[1688257459085,65.53786837,18.62,18.589,165.467]
[1688257459288,82.51184202,18.619,18.596,22.746]
[1688257459669,82.51184202,18.619,18.589,10.83719922]
[1688257459871,130.94971039,18.619,18.591,5.77840457]
[1688257460091,48.43786837,18.618,18.591,5.77840457]
[1688257460306,75.0,18.617,18.591,28.53040457]
[1688257460590,75.0,18.617,18.584,58.597]
[1688257460591,141.21056837,18.616,18.584,58.597]
[1688257460770,75.0,18.615,18.591,22.752]
[1688257460978,130.94971039,18.615,18.591,81.328]
[1688257461172,82.51184202,18.615,18.591,81.328]
[1688257461493,82.51184202,18.615,18.592,20.0]
[1688257461670,82.51184202,18.615,18.595,22.747]
[1688257461877,82.51184202,18.615,18.585,58.592]
[1688257462080,82.51184202,18.615,18.592,22.751]
[1688257462279,82.51184202,18.615,18.584,10.83719922]
[1688257462280,82.51184202,18.615,18.585,58.593]
[1688257462478,17.23,18.61,18.586,6.7802215]
[1688257462777,62.51184202,18.609,18.586,6.7802215]
[1688257463080,82.51184202,18.609,18.588,81.341]
[1688257463274,82.51184202,18.609,18.588,22.755]
[1688257464068,141.10684202,18.609,18.588,22.755]
[1688257465087,86.10684202,18.609,18.588,22.755]
[1688257465693,7.51184202,18.608,18.588,22.755]
[1688257465988,20.0,18.607,18.588,22.755]
[1688257466687,20.0,18.608,18.588,22.755]
[1688257466895,7.51184202,18.607,18.588,22.755]
[1688257467083,20.0,18.606,18.588,22.755]
[1688257467270,58.595,18.609,18.588,33.59219922]
[1688257467475,58.595,18.609,18.59,17.07]
[1688257467789,58.595,18.609,18.595,81.31]
[1688257468979,414.0,18.63,18.606,81.262]
[1688257469191,95.8438,18.629,18.606,81.262]
[1688257469377,103.35564202,18.629,18.606,81.262]
[1688257469697,103.35564202,18.629,18.606,22.734]
[1688257469880,19.87259202,18.629,18.606,22.734]
[1688257470187,126.67459202,18.629,18.606,22.734]
[1688257470393,20.0,18.628,18.606,22.734]
[1688257470593,95.8438,18.628,18.606,22.734]
[1688257470800,95.8438,18.628,18.607,55.0]
[1688257471087,103.35564202,18.628,18.613,22.725]
[1688257471297,7.51184202,18.627,18.613,22.725]
[1688257472090,106.802,18.629,18.613,22.725]
[1688257472292,7.51184202,18.635,18.62,22.716]
[1688257472470,20.0,18.634,18.62,22.716]
[1688257472995,7.51184202,18.633,18.62,22.716]
[1688257473177,7.51184202,18.633,18.619,22.718]
[1688257473378,7.51184202,18.633,18.61,75.636]
[1688257473571,7.51184202,18.633,18.611,75.0]
[1688257473775,55.0,18.632,18.611,75.0]
[1688257473975,55.0,18.632,18.615,187.964]
[1688257474199,41.501853,18.634,18.616,55.0]
[1688257474388,41.501853,18.634,18.621,22.715]
[1688257474788,7.51184202,18.633,18.614,58.504]
[1688257475092,7.51184202,18.633,18.621,22.715]
[1688257475499,55.0,18.632,18.621,22.715]
[1688257475792,62.51184202,18.632,18.621,22.715]
[1688257476097,7.51184202,18.631,18.619,22.718]
[1688257476291,55.0,18.63,18.619,22.718]
[1688257476489,55.0,18.63,18.614,58.504]
[1688257476690,62.51184202,18.63,18.618,22.719]
[1688257476898,62.51184202,18.63,18.616,22.721]
[1688257477478,62.51184202,18.63,18.616,81.219]
[1688257477680,55.0,18.63,18.616,81.219]
[1688257478096,62.51184202,18.63,18.616,22.721]
[1688257478295,7.51184202,18.629,18.616,22.721]
[1688257478498,7.51184202,18.629,18.61,17.12]
[1688257478499,55.0,18.628,18.61,17.12]
[1688257478682,55.0,18.628,18.611,20.0]
[1688257478884,7.51184202,18.627,18.611,42.727]
[1688257479088,55.0,18.626,18.611,42.727]
[1688257479898,20.0,18.625,18.611,22.727]
[1688257480103,7.51184202,18.631,18.611,22.727]
[1688257480508,55.0,18.63,18.612,20.0]
[1688257480691,55.0,18.63,18.617,22.72]
[1688257480885,55.0,18.63,18.617,81.214]
[1688257481421,55.0,18.63,18.617,22.72]
[1688257481786,62.51184202,18.63,18.612,20.0]
[1688257482104,62.51184202,18.63,18.608,10.83719922]
[1688257482105,7.51184202,18.629,18.616,22.722]
[1688257482306,55.0,18.628,18.616,22.722]
[1688257482487,55.0,18.63,18.616,22.722]
[1688257484799,62.51184202,18.63,18.61,17.07]
[1688257484994,7.51184202,18.629,18.615,22.723]
[1688257485197,55.0,18.628,18.608,69.35819922]
[1688257485398,55.0,18.628,18.616,22.722]
[1688257485793,21.501853,18.634,18.616,22.722]
[1688257485990,20.0,18.633,18.62,17.23]
[1688257486304,20.0,18.633,18.623,22.712]
[1688257487306,396.8,18.64,18.623,22.712]
[1688257487500,20.0,18.632,18.623,22.712]
[1688257487696,20.0,18.642,18.623,22.712]
[1688257487892,7.51184202,18.639,18.617,65.83719922]
[1688257488206,7.51184202,18.639,18.623,22.713]
[1688257488394,29.00654402,18.639,18.623,22.713]
[1688257489509,55.0,18.638,18.623,22.713]
[1688257490605,21.494702,18.639,18.624,55.0]
[1688257490905,21.494702,18.639,18.628,22.707]
[1688257491992,27.07220681,18.656,18.63,17.07]
[1688257492202,414.16,18.66,18.637,22.695]
[1688257492203,92.6041,18.658,18.637,22.695]
[1688257492407,75.0,18.656,18.637,22.695]
[1688257492704,20.0,18.655,18.637,22.695]
[1688257493013,27.51184202,18.655,18.638,22.695]
[1688257494014,7.51184202,18.654,18.638,22.695]
[1688257494400,20.0,18.653,18.63,17.07]
[1688257494697,7.51184202,18.652,18.634,22.699]
[1688257494912,75.0,18.651,18.634,22.699]
[1688257495412,75.0,18.651,18.62,60.87664393]
[1688257495413,24.74184202,18.65,18.62,123.94]
[1688257495711,55.0,18.649,18.62,123.94]
[1688257495896,20.0,18.648,18.62,123.94]
[1688257496096,55.0,18.647,18.628,22.706]
[1688257496403,27.51184202,18.646,18.628,22.706]
[1688257496593,55.0,18.645,18.628,81.166]
[1688257496796,20.0,18.644,18.628,81.166]
[1688257497000,55.0,18.643,18.628,81.166]
[1688257497316,20.0,18.642,18.628,22.706]
[1688257497516,55.0,18.641,18.628,22.706]
[1688257499098,55.0,18.643,18.628,22.706]
[1688257499310,414.03,18.66,18.63,17.23]
[1688257499510,27.06885309,18.656,18.638,22.695]
[1688257499814,7.51184202,18.651,18.638,22.695]
[1688257500405,28.99331302,18.651,18.638,22.695]
[1688257500604,21.481471,18.651,18.64,17.23]
[1688257500820,7.51184202,18.66,18.643,22.689]
[1688257501114,7.51184202,18.66,18.648,22.682]
[1688257501299,99.3957,18.669,18.646,22.685]
[1688257501502,147.82136711,18.669,18.642,22.69]
[1688257502022,27.51184202,18.668,18.642,129.277]
[1688257502206,27.51184202,18.668,18.643,55.0]
[1688257502408,27.51184202,18.668,18.65,22.68]
[1688257503505,27.51184202,18.668,18.643,55.0]
[1688257503817,27.51184202,18.668,18.65,22.68]
[1688257504220,85.91484202,18.668,18.65,22.68]
[1688257504918,58.403,18.668,18.651,20.0]
[1688257505124,58.403,18.668,18.656,22.673]
[1688257505623,58.403,18.668,18.656,81.045]
[1688257505824,58.403,18.668,18.656,22.673]
[1688257506530,58.403,18.668,18.646,58.403]
[1688257506705,58.403,18.668,18.647,75.0]
[1688257507123,58.403,18.668,18.652,22.677]
[1688257507530,55.0,18.667,18.652,22.677]
[1688257508425,20.0,18.666,18.652,22.678]
[1688257508608,55.0,18.665,18.646,58.401]
[1688257508930,20.0,18.664,18.652,22.678]
[1688257509104,58.403,18.668,18.652,22.678]
[1688257510407,55.0,18.667,18.652,22.678]
[1688257510616,20.0,18.666,18.652,22.678]
[1688257510818,55.0,18.665,18.652,22.678]
[1688257511129,55.0,18.665,18.647,164.952]
[1688257511130,55.0,18.665,18.648,22.682]
[1688257511306,20.0,18.664,18.648,22.682]
[1688257511502,55.0,18.663,18.648,22.682]
[1688257511705,20.0,18.662,18.648,22.682]
[1688257511905,55.0,18.661,18.648,22.682]
[1688257513037,58.403,18.668,18.648,22.682]
[1688257513326,20.0,18.667,18.648,22.682]
[1688257513529,27.51184202,18.667,18.648,22.682]
[1688257514427,55.0,18.666,18.648,22.682]
[1688257514636,20.0,18.665,18.648,22.682]
[1688257514819,7.51184202,18.666,18.648,22.682]
[1688257515013,58.403,18.668,18.654,22.675]
[1688257516516,95.7501,18.675,18.655,55.0]
[1688257516716,20.0,18.674,18.661,22.667]
[1688257517430,20.0,18.674,18.657,58.366]
[1688257517431,7.51184202,18.674,18.659,22.669]
[1688257517642,27.51184202,18.673,18.659,22.669]
[1688257517928,55.0,18.672,18.659,22.669]
[1688257518130,20.0,18.671,18.659,81.032]
[1688257518315,55.0,18.67,18.659,81.032]
[1688257518518,414.03,18.69,18.66,72.12]
[1688257518718,96.0419,18.685,18.667,22.659]
[1688257518922,96.0419,18.685,18.666,58.34]
[1688257518923,96.0419,18.685,18.673,80.971]
[1688257519123,96.0419,18.685,18.673,22.652]
[1688257519636,154.3689,18.685,18.673,22.652]
[1688257519809,58.327,18.685,18.673,22.652]
[1688257520130,58.327,18.685,18.674,55.0]
[1688257520425,58.327,18.685,18.677,22.647]
[1688257520619,396.8,18.697,18.677,22.647]
[1688257520828,7.51184202,18.695,18.677,22.647]
[1688257521519,17.23,18.69,18.668,22.658]
[1688257521927,62.51184202,18.689,18.668,22.658]
[1688257522523,20.0,18.688,18.668,22.658]
[1688257522844,62.51184202,18.687,18.668,22.658]
[1688257523028,20.0,18.686,18.668,22.658]
[1688257523233,55.0,18.685,18.668,22.658]
[1688257523433,20.0,18.684,18.668,22.658]
[1688257523636,55.0,18.683,18.668,22.658]
[1688257523827,20.0,18.682,18.668,22.658]
[1688257524020,55.0,18.681,18.667,22.659]
[1688257524217,55.0,18.681,18.655,46.24008826]
[1688257524218,17.2,18.68,18.655,58.375]
[1688257524535,62.51184202,18.679,18.658,22.67]
[1688257524919,20.0,18.678,18.658,22.67]
[1688257525117,55.0,18.677,18.658,22.67]
[1688257525331,20.0,18.676,18.658,22.67]
[1688257525523,55.0,18.675,18.658,22.67]
[1688257525832,20.0,18.674,18.658,22.67]
[1688257526033,55.0,18.673,18.658,22.67]
[1688257526328,20.0,18.672,18.658,22.67]
[1688257526537,55.0,18.671,18.658,22.67]
[1688257526711,55.0,18.671,18.656,22.672]
[1688257529032,55.0,18.671,18.646,10.83719922]
[1688257529218,17.2,18.67,18.651,22.678]
[1688257529424,17.2,18.67,18.64,17.39]
[1688257529425,75.0,18.669,18.64,38.851911]
[1688257529632,75.0,18.669,18.64,17.39]
[1688257529932,7.51184202,18.668,18.64,28.22719922]
[1688257530141,55.0,18.667,18.648,22.682]
[1688257530323,20.0,18.666,18.648,22.682]
[1688257530525,55.0,18.665,18.648,22.682]
[1688257530737,20.0,18.664,18.648,22.682]
[1688257531046,55.0,18.666,18.648,22.682]
[1688257531337,55.0,18.666,18.654,22.675]
[1688257531938,55.0,18.666,18.651,22.678]
[1688257532240,55.0,18.666,18.649,20.0]
[1688257532241,55.0,18.666,18.652,20.0]
[1688257532545,55.0,18.666,18.652,22.677]
[1688257532839,55.0,18.665,18.652,22.677]
[1688257533041,55.0,18.665,18.65,22.679]
[1688257533215,17.51184202,18.664,18.649,22.681]
[1688257533417,55.0,18.663,18.649,22.681]
[1688257533831,62.51184202,18.663,18.649,22.681]
[1688257535426,7.51184202,18.662,18.647,22.683]
[1688257535628,55.0,18.661,18.647,22.683]
[1688257536229,62.51184202,18.661,18.637,106.611]
[1688257536438,62.51184202,18.661,18.641,22.691]
[1688257536745,24.74184202,18.66,18.642,20.0]
[1688257537039,24.74184202,18.66,18.634,10.83719922]
[1688257537040,55.0,18.659,18.636,58.434]
[1688257537226,55.0,18.659,18.637,22.695]
[1688257537227,75.0,18.659,18.637,22.695]
[1688257537427,99.52654202,18.658,18.637,22.695]
[1688257537636,75.0,18.657,18.637,22.695]
[1688257538023,7.51184202,18.656,18.637,22.695]
[1688257538220,75.0,18.655,18.637,22.695]
[1688257538623,7.51184202,18.654,18.637,22.695]
[1688257538823,75.0,18.653,18.637,22.695]
[1688257539023,55.0,18.653,18.637,22.695]
[1688257539327,55.0,18.654,18.637,22.695]
[1688257539630,27.51184202,18.653,18.637,22.695]
[1688257539826,55.0,18.652,18.637,22.695]
[1688257541224,55.0,18.652,18.635,22.698]
[1688257541424,62.51184202,18.652,18.635,22.698]
[1688257541659,62.51184202,18.652,18.628,58.457]
[1688257541829,62.51184202,18.652,18.634,22.699]
[1688257542341,55.0,18.652,18.634,22.699]
[1688257544845,17.23,18.65,18.614,334.49330955]
[1688257545043,55.0,18.649,18.624,58.47]
[1688257545348,20.0,18.648,18.624,22.712]
[1688257545646,156.92544202,18.647,18.624,22.712]
[1688257545824,20.0,18.646,18.624,22.712]
[1688257546029,55.0,18.645,18.624,22.712]
[1688257546332,20.0,18.644,18.624,22.712]
[1688257546634,55.0,18.643,18.624,22.712]
[1688257547030,7.51184202,18.642,18.624,22.712]
[1688257547231,55.0,18.641,18.624,22.712]
[1688257547629,62.51184202,18.641,18.624,22.712]
[1688257548349,55.0,18.641,18.624,22.712]
[1688257548844,20.0,18.644,18.624,22.712]
[1688257549035,20.0,18.644,18.625,55.0]
[1688257549238,20.0,18.644,18.63,22.704]
[1688257553054,55.0,18.643,18.63,22.704]
[1688257553852,55.0,18.645,18.63,22.704]
[1688257554362,20.0,18.644,18.63,22.704]
[1688257555253,55.0,18.645,18.631,55.0]
[1688257555458,7.51184202,18.651,18.635,22.698]
[1688257555655,97.1992,18.655,18.635,22.698]
[1688257555863,7.51184202,18.651,18.635,22.698]
[1688257556058,65.95184202,18.651,18.635,22.698]
[1688257557743,65.95184202,18.651,18.64,17.23]
[1688257557744,58.44,18.651,18.64,17.23]
[1688257557957,491.7418,18.665,18.643,22.689]
[1688257558267,7.51184202,18.661,18.643,22.689]
[1688257559054,55.0,18.66,18.643,22.689]
[1688257559355,62.51184202,18.66,18.643,22.689]
[1688257559562,7.51184202,18.659,18.643,22.689]
[1688257559750,75.0,18.658,18.639,22.693]
[1688257560150,7.51184202,18.657,18.639,22.693]
[1688257560465,7.51184202,18.657,18.631,55.0]
[1688257560466,20.0,18.656,18.644,22.687]
[1688257560966,27.51184202,18.66,18.644,22.687]
[1688257561561,55.0,18.659,18.644,22.687]
[1688257561757,20.0,18.658,18.644,22.687]
[1688257561946,55.0,18.657,18.644,22.687]
[1688257562251,20.0,18.656,18.644,22.687]
[1688257562450,20.0,18.658,18.648,22.682]
[1688257562969,20.0,18.66,18.648,22.682]
[1688257563547,55.0,18.659,18.648,22.682]
[1688257563764,20.0,18.658,18.644,22.687]
[1688257564070,55.0,18.657,18.644,22.687]
[1688257564244,20.0,18.656,18.644,22.687]
[1688257564448,20.0,18.656,18.642,22.689]
[1688257564674,55.0,18.655,18.642,22.689]
[1688257564845,20.0,18.654,18.642,22.689]
[1688257565454,20.0,18.654,18.646,22.685]
[1688257565758,312.86392039,18.682,18.646,22.685]
[1688257565759,70.91,18.68,18.646,22.685]
[1688257565955,20.0,18.664,18.647,55.0]
[1688257566158,27.51184202,18.664,18.652,22.678]
[1688257567068,122.45364202,18.664,18.652,22.678]
[1688257567457,27.51184202,18.664,18.652,22.678]
[1688257567851,17.3,18.68,18.652,22.678]
[1688257568052,58.392,18.67,18.658,22.671]
[1688257568355,58.392,18.67,18.653,65.83719922]
[1688257568550,58.392,18.67,18.658,22.67]
[1688257569063,91.7822,18.679,18.658,22.67]
[1688257569267,91.7822,18.679,18.65,123.609]
[1688257569268,20.0,18.678,18.65,75.46]
[1688257569461,20.0,18.678,18.651,75.0]
[1688257569656,20.0,18.678,18.654,22.675]
[1688257569854,20.0,18.678,18.661,22.667]
[1688257570070,95.0,18.678,18.661,22.667]
[1688257570255,95.0,18.678,18.661,22.666]
[1688257570455,95.0,18.678,18.657,22.671]
[1688257570656,95.0,18.678,18.651,20.0]
[1688257571070,55.0,18.677,18.651,20.0]
[1688257571270,20.0,18.676,18.651,20.0]
[1688257571570,55.0,18.675,18.651,20.0]
[1688257571772,20.0,18.674,18.654,22.675]
[1688257572076,55.0,18.673,18.654,22.675]
[1688257572264,75.0,18.678,18.654,81.053]
[1688257572575,20.0,18.677,18.654,81.053]
[1688257572975,20.0,18.677,18.655,55.0]
[1688257573177,20.0,18.677,18.66,22.668]
[1688257573380,20.0,18.677,18.651,78.388]
[1688257573673,55.0,18.676,18.651,78.388]
[1688257573876,20.0,18.675,18.651,78.388]
[1688257574052,55.0,18.674,18.651,78.388]
[1688257574467,20.0,18.673,18.651,78.388]
[1688257574674,55.0,18.672,18.651,78.388]
[1688257574877,55.0,18.672,18.656,22.672]
[1688257575461,471.8,18.678,18.657,55.0]
[1688257575661,471.8,18.678,18.663,22.664]
[1688257575874,20.0,18.677,18.663,22.664]
[1688257576754,75.0,18.678,18.663,22.664]
[1688257576959,75.0,18.678,18.668,22.658]
[1688257577157,396.8,18.686,18.674,22.651]
[1688257577358,20.0,18.685,18.673,22.652]
[1688257577582,20.0,18.685,18.664,161.461]
[1688257577879,20.0,18.687,18.674,22.651]
[1688257578076,118.3407,18.687,18.674,22.651]
[1688257578375,98.3407,18.687,18.674,22.651]
[1688257578566,396.8,18.695,18.675,55.0]
[1688257578772,98.3407,18.699,18.681,22.643]
[1688257579275,55.0,18.695,18.681,22.643]
[1688257579975,20.0,18.694,18.681,22.643]
[1688257580560,55.0,18.695,18.681,22.643]
[1688257580781,26.92802914,18.704,18.681,22.643]
[1688257580959,26.92802914,18.704,18.688,22.634]